bitfinex/quotes_BTCUSD_20240906
["timestamp","ask_amount","ask_price","bid_price","bid_amount"]
[1725636459578,0.367896,54364.0,54359.0,0.189]
[1725636459813,0.183958,54360.0,54357.0,0.4067]
[1725636460054,0.183962,54359.0,54357.0,0.4067]
[1725636460292,0.367905,54362.0,54357.0,0.4067]
[1725636460531,0.18396,54360.0,54357.0,0.4067]
[1725636460750,0.18396,54360.0,54359.0,0.014]
[1725636461013,0.919794,54360.0,54359.0,0.014]
[1725636461235,1.4311428,54360.0,54359.0,0.013]
[1725636461495,3.4488598,54360.0,54359.0,0.013]
[1725636461726,0.184041,54336.0,54332.0,0.1835]
[1725636461949,0.46404536,54344.0,54332.0,0.1835]
[1725636462215,0.368045,54342.0,54332.0,0.1835]
[1725636462470,0.1,54341.0,54332.0,0.23975]
[1725636462699,0.1,54341.0,54333.0,0.184049]
[1725636462934,0.1,54341.0,54332.0,0.1835]
[1725636462935,0.001,54336.0,54332.0,0.1875]
[1725636463427,0.367951,54356.0,54336.0,0.4142]
[1725636463652,0.001,54342.0,54340.0,0.368047]
[1725636463874,0.001,54341.0,54336.0,0.4142]
[1725636464114,0.001,54341.0,54338.0,0.184032]
[1725636464361,0.001,54341.0,54337.0,0.11082454]
[1725636464362,0.001,54341.0,54339.0,0.391057]
[1725636464619,0.001,54342.0,54339.0,0.023]
[1725636464837,0.001,54342.0,54336.0,0.4142]
[1725636464838,0.001,54342.0,54338.0,0.368063]
[1725636465059,0.001,54342.0,54341.0,0.184023]
[1725636465315,0.001,54342.0,54341.0,1.21974386]
[1725636465534,0.1962,54364.0,54341.0,0.69067486]
[1725636465777,0.1962,54364.0,54341.0,0.85069586]
[1725636466055,0.6045,54372.0,54347.0,0.46404536]
[1725636466308,0.6045,54372.0,54348.0,0.4047]
[1725636466309,0.55430836,54366.0,54348.0,0.4047]
[1725636466537,0.6045,54372.0,54349.0,0.03947]
[1725636466538,0.001,54356.0,54349.0,0.03947]
[1725636466787,0.001,54356.0,54350.0,0.023]
[1725636467001,0.183942,54365.0,54350.0,0.023]
[1725636467217,0.183937,54367.0,54353.0,0.18398]
[1725636467475,0.6045,54372.0,54349.0,0.03947]
[1725636467476,0.183959,54360.0,54349.0,0.03947]
[1725636467714,0.183982,54354.0,54348.0,0.3817]
[1725636467958,1.2651,54353.0,54348.0,0.3817]
[1725636468854,1.2651,54353.0,54341.0,0.1951]
[1725636468855,0.1,54360.0,54343.0,0.3843]
[1725636469109,0.183996,54349.0,54348.0,0.012]
[1725636469357,0.3997,54348.0,54327.0,0.1951]
[1725636469611,0.184057,54331.0,54323.0,0.001628]
[1725636469837,0.184064,54329.0,54323.0,0.001628]
[1725636470069,0.184064,54329.0,54325.0,0.00163]
[1725636470317,1.449161,54330.0,54325.0,0.00163]
[1725636470597,0.55430836,54360.0,54330.0,0.1929]
[1725636470829,0.5809,54369.0,54325.0,0.0403858]
[1725636470830,0.55430836,54359.0,54352.0,0.183985]
[1725636471073,0.55430836,54359.0,54352.0,1.05924536]
[1725636471321,0.01,54375.0,54352.0,1.05924536]
[1725636471588,0.000814,54387.0,54361.0,0.0159]
[1725636471809,0.000814,54387.0,54373.0,0.183913]
[1725636472028,0.000814,54387.0,54374.0,0.08769584]
[1725636472294,0.000814,54387.0,54369.0,0.5952]
[1725636472295,0.183895,54379.0,54369.0,0.5952]
[1725636472532,0.000814,54387.0,54370.0,0.023]
[1725636472760,0.000814,54387.0,54370.0,0.022]
[1725636473010,0.000814,54387.0,54385.0,0.760974]
[1725636473242,0.55430836,54421.0,54396.0,0.792721]
[1725636473243,0.00026889,54397.0,54396.0,0.792721]
[1725636473466,0.00026889,54397.0,54396.0,1.15220446]
[1725636473719,0.00026889,54397.0,54396.0,1.70787846]
[1725636474193,0.00026889,54397.0,54396.0,2.07555246]
[1725636474643,0.00026889,54397.0,54396.0,2.09855246]
[1725636475821,0.00026889,54397.0,54396.0,2.07838539]
[1725636476984,0.00126889,54397.0,54396.0,2.07838539]
[1725636476988,0.00126889,54397.0,54396.0,0.59288293]
[1725636477214,0.00026889,54397.0,54396.0,0.36693293]
[1725636477453,0.00126889,54397.0,54396.0,0.36693293]
[1725636477674,0.00126889,54397.0,54396.0,1.06989288]
[1725636478137,0.00126889,54397.0,54396.0,1.47446688]
[1725636478379,0.00126889,54397.0,54396.0,1.80524088]
[1725636478586,0.00126889,54397.0,54396.0,1.82824088]
[1725636478818,0.00026889,54397.0,54396.0,1.86514088]
[1725636479246,0.001,54397.0,54396.0,1.86487199]
[1725636479705,0.1,54417.0,54396.0,1.86487199]
[1725636479706,0.183771,54416.0,54402.0,0.220715]
[1725636479950,0.1,54415.0,54403.0,0.081836]
[1725636480167,0.1,54415.0,54403.0,0.023]
[1725636480384,0.4076,54414.0,54396.0,0.05507759]
[1725636480600,0.09985683,54413.0,54403.0,0.199]
[1725636480861,0.4076,54422.0,54407.0,0.367597]
[1725636481090,0.4076,54422.0,54403.0,0.199]
[1725636481389,0.00082,54429.0,54420.0,0.367509]
[1725636481577,0.00082,54429.0,54424.0,0.0369]
[1725636481827,0.00082,54429.0,54428.0,0.183728]
[1725636482066,0.00082,54429.0,54428.0,1.15728225]
[1725636482304,0.00082,54429.0,54428.0,1.19182525]
[1725636482519,0.00082,54429.0,54428.0,1.22872525]
[1725636482778,0.00064466,54429.0,54428.0,1.22872525]
[1725636483244,0.00064466,54429.0,54428.0,0.67727136]
[1725636483540,0.00164466,54429.0,54428.0,0.86099936]
[1725636483783,0.00164466,54429.0,54428.0,0.67727136]
[1725636484052,0.00064466,54429.0,54428.0,0.67727136]
[1725636484273,0.183745,54423.0,54422.0,0.3835]
[1725636484500,0.183776,54414.0,54413.0,0.0369]
[1725636484769,0.183776,54414.0,54413.0,0.04204]
[1725636485235,0.00064466,54429.0,54413.0,0.04204]
[1725636485236,0.00064466,54429.0,54414.0,0.4004]
[1725636485488,0.00064466,54429.0,54428.0,0.005]
[1725636485489,0.00164466,54429.0,54428.0,0.005]
[1725636485755,0.00164466,54429.0,54428.0,0.86944536]
[1725636485973,0.00064466,54429.0,54428.0,1.5025749]
[1725636486188,0.00064466,54429.0,54428.0,1.9069319]
[1725636486410,0.00064466,54429.0,54428.0,2.0962319]
[1725636486656,0.00064466,54429.0,54428.0,2.5866889]
[1725636486917,0.00082,54433.0,54428.0,1.3005899]
[1725636487144,0.00082,54433.0,54432.0,1.371675]
[1725636487367,0.00082,54433.0,54432.0,1.660675]
[1725636487612,0.00082,54433.0,54432.0,1.683675]
[1725636488571,0.00082,54433.0,54432.0,1.316245]
[1725636489061,0.00082,54433.0,54432.0,0.948815]
[1725636489291,0.00082,54433.0,54432.0,1.3550008]
[1725636489526,0.00082,54433.0,54432.0,1.7224308]
[1725636489961,0.00182,54433.0,54432.0,1.7224308]
[1725636490436,0.00082,54437.0,54435.0,1.295935]
[1725636490687,0.4676,54467.0,54451.0,1.99410036]
[1725636490913,0.5726,54487.0,54451.0,2.36140236]
[1725636491397,0.00082,54477.0,54476.0,0.46404536]
[1725636491631,0.00082,54477.0,54476.0,0.89154536]
[1725636491846,0.00082,54477.0,54476.0,0.9784899]
[1725636492320,0.00082,54477.0,54476.0,1.5291909]
[1725636492564,0.00082,54477.0,54476.0,2.2634589]
[1725636492788,0.00082,54477.0,54476.0,1.8963249]
[1725636493018,0.00013,54493.0,54476.0,1.8963249]
[1725636493019,0.0014408,54489.0,54480.0,0.183552]
[1725636493252,0.0014408,54489.0,54476.0,0.88157854]
[1725636493253,0.183549,54482.0,54476.0,0.51444454]
[1725636493479,1.0395537,54488.0,54470.0,0.4114]
[1725636493702,1.0395537,54488.0,54456.0,0.46404536]
[1725636493703,0.46404536,54483.0,54462.0,0.1942]
[1725636493949,0.0014408,54489.0,54476.0,0.014]
[1725636493950,0.184563,54477.0,54476.0,0.014]
[1725636494415,0.5756,54482.0,54457.0,0.4114]
[1725636494677,0.10074254,54481.0,54467.0,0.55430836]
[1725636494904,0.183624,54459.0,54458.0,0.05999]
[1725636495128,0.1,54466.0,54453.0,0.55430836]
[1725636495367,0.1833,54467.0,54453.0,0.55430836]
[1725636495636,0.3804,54472.0,54449.0,0.4125]
[1725636495637,0.1,54466.0,54454.0,0.00367271]
[1725636495857,0.1,54466.0,54455.0,0.183637]
[1725636496073,0.183614,54462.0,54449.0,0.779815]
[1725636496321,0.1,54466.0,54450.0,0.133565]
[1725636496544,0.1,54466.0,54433.0,0.45938234]
[1725636496545,0.5654,54465.0,54441.0,0.3933]
[1725636496805,0.183629,54458.0,54453.0,0.014]
[1725636497040,0.1,54464.0,54453.0,0.014]
[1725636497253,0.183641,54454.0,54441.0,0.3933]
[1725636497504,0.183641,54454.0,54450.0,0.014]
[1725636497505,1.2651,54454.0,54450.0,0.014]
[1725636498005,0.1,54464.0,54450.0,0.014]
[1725636498006,0.183651,54451.0,54450.0,0.014]
[1725636498272,0.591651,54451.0,54450.0,0.014]
[1725636498513,0.55457581,54451.0,54450.0,0.014]
[1725636498957,0.1871,54450.0,54434.0,0.55430836]
[1725636499174,0.2871,54450.0,54435.0,0.12083697]
[1725636499657,0.2871,54450.0,54426.0,0.5916]
[1725636499898,0.2871,54450.0,54434.0,0.55430836]
[1725636500123,0.2871,54450.0,54426.0,0.5916]
[1725636500124,0.2871,54450.0,54430.0,0.367438]
[1725636500346,0.2871,54450.0,54434.0,0.014]
[1725636500347,0.46404536,54446.0,54434.0,0.014]
[1725636500573,0.46404536,54435.0,54434.0,0.014]
[1725636500788,0.46404536,54435.0,54427.0,0.55430836]
[1725636501001,0.46404536,54435.0,54419.0,0.5783]
[1725636501002,0.1,54434.0,54419.0,0.5783]
[1725636501225,0.1,54434.0,54419.0,0.762057]
[1725636501458,0.5639,54450.0,54422.0,0.3922]
[1725636501681,0.5639,54450.0,54424.0,0.3922]
[1725636501682,0.1,54446.0,54424.0,0.3922]
[1725636501909,0.1,54446.0,54442.0,0.3922]
[1725636502165,0.195,54460.0,54445.0,0.367338]
[1725636502381,0.001,54450.0,54446.0,0.02667293]
[1725636502645,0.001,54450.0,54446.0,0.023]
[1725636502884,0.3906,54462.0,54446.0,0.023]
[1725636503099,0.41291262,54462.0,54447.0,0.02912265]
[1725636503317,0.41291262,54462.0,54448.0,0.023]
[1725636503773,0.1865,54467.0,54448.0,0.023]
[1725636503995,0.001,54450.0,54448.0,0.20666]
[1725636504239,0.001,54450.0,54449.0,0.06480147]
[1725636504493,0.001,54450.0,54449.0,0.08780147]
[1725636505004,0.001,54450.0,54449.0,0.023]
[1725636505248,0.5662,54474.0,54450.0,0.049]
[1725636505493,1.2651,54473.0,54459.0,0.367248]
[1725636505704,1.2651,54473.0,54460.0,0.68988671]
[1725636505923,1.2651,54473.0,54460.0,0.6862148]
[1725636506144,0.001,54462.0,54460.0,0.4796148]
[1725636506364,1.2651,54461.0,54453.0,0.1883]
[1725636506587,1.2651,54461.0,54454.0,0.023]
[1725636506809,1.2651,54461.0,54450.0,0.232652]
[1725636506810,1.2651,54461.0,54450.0,0.049]
[1725636507050,0.46404536,54458.0,54450.0,0.049]
[1725636507285,0.46404536,54458.0,54450.0,0.11319227]
[1725636507507,1.2651,54457.0,54450.0,0.04904]
[1725636507776,1.3651,54457.0,54450.0,0.04904]
[1725636508000,0.002,54476.0,54450.0,0.04904]
[1725636508001,1.2651,54472.0,54452.0,0.87234536]
[1725636508225,1.2651,54472.0,54453.0,0.1149177]
[1725636508459,0.46404536,54486.0,54466.0,0.1836]
[1725636508676,0.46404536,54486.0,54465.0,0.4419]
[1725636508677,0.02182999,54482.0,54467.0,0.0036715]
[1725636508951,0.1853,54485.0,54467.0,0.0036715]
[1725636509134,0.1853,54485.0,54468.0,0.25925715]
[1725636509370,0.1853,54485.0,54464.0,0.183607]
[1725636509371,0.46404536,54474.0,54460.0,0.4064]
[1725636509596,0.46404536,54469.0,54461.0,0.55430836]
[1725636509859,0.46404536,54469.0,54455.0,0.1986]
[1725636510073,0.4009,54471.0,54457.0,0.55430836]
[1725636510074,0.1958,54468.0,54457.0,0.55430836]
[1725636510298,0.0310368,54485.0,54454.0,0.4064]
[1725636510299,0.1935,54475.0,54456.0,0.367268]
[1725636510542,0.1,54474.0,54458.0,0.0369]
[1725636510782,0.46404536,54473.0,54458.0,0.0369]
[1725636511020,0.4127,54467.0,54453.0,0.11124579]
[1725636511255,0.4127,54467.0,54450.0,0.04904]
[1725636511256,0.46404536,54463.0,54450.0,0.04904]
[1725636511774,0.18304086,54462.0,54450.0,0.04904]
[1725636512268,0.1823,54462.0,54458.0,0.014]
[1725636512802,0.1823,54462.0,54450.0,0.050668]
[1725636513260,0.46404536,54458.0,54450.0,0.064668]
[1725636513741,0.46404536,54458.0,54450.0,0.050668]
[1725636514223,0.46404536,54453.0,54450.0,0.050668]
[1725636514483,1.2651,54452.0,54450.0,0.050668]
[1725636515283,1.1401,54452.0,54450.0,0.064668]
[1725636515758,1.1401,54452.0,54450.0,0.050668]
[1725636515993,1.1411,54452.0,54450.0,0.064668]
[1725636516244,0.1,54451.0,54450.0,0.064668]
[1725636516500,0.1,54451.0,54450.0,0.050668]
[1725636516745,1.60149353,54451.0,54450.0,0.064668]
[1725636516990,1.80725799,54451.0,54450.0,0.064668]
[1725636517730,1.2401,54451.0,54450.0,0.064668]
[1725636517973,1.1401,54451.0,54450.0,0.064668]
[1725636518231,1.1401,54451.0,54450.0,0.050668]
[1725636518714,1.1411,54451.0,54450.0,0.064668]
[1725636519191,1.1401,54451.0,54450.0,0.050668]
[1725636519429,0.001,54451.0,54450.0,0.064668]
[1725636519895,0.001,54451.0,54450.0,0.0897948]
[1725636520115,0.001,54451.0,54450.0,0.064668]
[1725636520862,1.42123252,54451.0,54450.0,0.064668]
[1725636521551,1.42046639,54451.0,54450.0,0.064668]
[1725636521780,1.51946639,54451.0,54450.0,0.050668]
[1725636522014,1.54122484,54451.0,54450.0,0.050668]
[1725636522261,0.97512484,54451.0,54450.0,0.064668]
[1725636522744,0.97512484,54451.0,54450.0,0.050668]
[1725636523012,0.97512484,54451.0,54450.0,0.064668]
[1725636523476,0.97512484,54451.0,54450.0,0.050668]
[1725636523952,0.97512484,54451.0,54450.0,0.064668]
[1725636525164,0.97512484,54451.0,54450.0,0.050668]
[1725636525671,0.12175845,54451.0,54450.0,0.064668]
[1725636526171,0.02175845,54451.0,54450.0,0.050668]
[1725636526416,0.02175845,54451.0,54450.0,0.064668]
[1725636526673,0.85336639,54456.0,54450.0,0.064668]
[1725636527407,0.85336639,54456.0,54450.0,0.050668]
[1725636527408,0.46404536,54453.0,54450.0,0.050668]
[1725636527649,0.46404536,54453.0,54430.0,0.0369]
[1725636527650,0.4091,54451.0,54430.0,0.0369]
[1725636527883,0.1895,54449.0,54429.0,0.55430836]
[1725636528174,0.46404536,54439.0,54429.0,0.55430836]
[1725636528383,0.46404536,54439.0,54416.0,0.50425396]
[1725636528384,0.46404536,54433.0,54414.0,0.55430836]
[1725636528604,0.1,54432.0,54415.0,0.09415484]
[1725636528844,0.56404536,54432.0,54416.0,0.0369]
[1725636529073,0.46404536,54419.0,54418.0,0.0369]
[1725636529322,0.46404536,54419.0,54413.0,4e-05]
[1725636529791,0.1928,54420.0,54414.0,0.0509]
[1725636530018,0.46404536,54419.0,54414.0,0.014]
[1725636530229,0.56404536,54419.0,54413.0,4e-05]
[1725636530465,0.46404536,54414.0,54413.0,0.01404]
[1725636530711,1.16994536,54414.0,54413.0,0.01404]
[1725636530949,0.7259,54414.0,54413.0,0.01404]
[1725636531605,0.032,54408.0,54407.0,0.001628]
[1725636531841,0.032,54408.0,54395.0,0.00162]
[1725636531842,0.3961,54401.0,54395.0,0.00162]
[1725636532058,0.46404536,54396.0,54395.0,0.00162]
[1725636532287,0.56404536,54396.0,54395.0,0.00162]
[1725636532510,0.56604536,54396.0,54395.0,0.00162]
[1725636532751,1.2167499,54396.0,54395.0,0.00162]
[1725636533010,1.2267499,54396.0,54395.0,0.00162]
[1725636533243,1.2267499,54396.0,54395.0,0.01362]
[1725636533691,1.2267499,54396.0,54395.0,0.00162]
[1725636534134,1.14914536,54396.0,54395.0,0.00162]
[1725636535497,1.15014536,54396.0,54395.0,0.00962]
[1725636535944,1.14914536,54396.0,54395.0,0.00162]
[1725636536388,1.14914536,54396.0,54381.0,0.4134]
[1725636536389,0.84312639,54393.0,54381.0,0.4134]
[1725636536612,0.94312639,54392.0,54381.0,0.4134]
[1725636536827,0.46404536,54391.0,54381.0,0.4134]
[1725636537037,0.1,54390.0,54381.0,0.4134]
[1725636537274,0.1,54390.0,54382.0,0.1815]
[1725636537942,0.1,54390.0,54381.0,0.4134]
[1725636538172,0.1,54391.0,54381.0,0.4134]
[1725636538600,0.46404536,54390.0,54377.0,0.3751]
[1725636538831,0.1,54389.0,54377.0,0.3751]
[1725636539074,0.46404536,54384.0,54381.0,0.001]
[1725636539333,0.001,54392.0,54383.0,0.55430836]
[1725636539567,0.46404536,54408.0,54384.0,0.023]
[1725636539797,0.001,54390.0,54387.0,0.367733]
[1725636540024,0.001,54390.0,54389.0,0.18386]
[1725636540273,1.01835372,54407.0,54385.0,0.3798]
[1725636540493,0.46404536,54407.0,54385.0,0.3798]
[1725636540759,0.001,54392.0,54385.0,0.3798]
[1725636540977,0.001,54392.0,54383.0,0.001]
[1725636541207,0.001,54392.0,54383.0,0.02039]
[1725636541428,0.001,54392.0,54383.0,0.001]
[1725636541915,0.1,54399.0,54384.0,0.3934]
[1725636542141,0.1862,54409.0,54389.0,0.003]
[1725636542142,0.1,54403.0,54389.0,0.003]
[1725636542381,0.001,54390.0,54389.0,0.003]
[1725636542610,0.001,54390.0,54377.0,0.1864]
[1725636542611,0.5613,54392.0,54377.0,0.3973]
[1725636543058,0.1,54391.0,54383.0,0.003]
[1725636543540,0.1,54391.0,54379.0,0.0369]
[1725636543777,0.1895,54400.0,54379.0,0.4848881]
[1725636543995,0.001,54392.0,54387.0,0.183866]
[1725636544248,0.001,54392.0,54385.0,0.4016]
[1725636544469,0.001,54392.0,54391.0,0.40670977]
[1725636544710,0.001,54392.0,54391.0,1.56672377]
[1725636545160,0.3959,54420.0,54396.0,0.36767]
[1725636545407,0.3959,54420.0,54397.0,0.023]
[1725636545623,0.46404536,54415.0,54391.0,0.5894]
[1725636545870,0.46404536,54415.0,54392.0,0.55430836]
[1725636545871,0.1922,54411.0,54392.0,0.55430836]
[1725636546320,0.1922,54411.0,54391.0,0.5894]
[1725636546562,0.1,54410.0,54391.0,0.5894]
[1725636546777,0.50570361,54409.0,54396.0,0.001]
[1725636547005,0.01,54405.0,54396.0,0.001]
[1725636547310,0.46404536,54404.0,54387.0,0.55430836]
[1725636547557,0.1,54403.0,54389.0,0.183858]
[1725636547775,0.1,54403.0,54386.0,0.3751]
[1725636547995,0.1,54403.0,54387.0,0.0795575]
[1725636548231,0.1,54403.0,54389.0,0.367715]
[1725636548472,0.1,54403.0,54390.0,0.183856]
[1725636548701,0.002,54419.0,54391.0,0.023]
[1725636548927,0.001,54411.0,54392.0,0.00163]
[1725636549162,0.001,54411.0,54393.0,0.0208486]
[1725636549395,0.46404536,54416.0,54392.0,0.00163]
[1725636549636,0.46404536,54409.0,54392.0,0.00163]
[1725636549937,0.002,54410.0,54392.0,0.00163]
[1725636549938,0.01,54402.0,54392.0,0.00163]
[1725636550159,0.46404536,54398.0,54392.0,0.00163]
[1725636550388,0.1,54397.0,54392.0,0.00163]
[1725636551571,0.4111,54401.0,54392.0,0.00163]
[1725636551572,0.1,54400.0,54392.0,0.00163]
[1725636551807,0.46404536,54398.0,54392.0,0.00163]
[1725636552035,0.1,54397.0,54392.0,0.00163]
[1725636552744,0.0605,54396.0,54392.0,0.00363]
[1725636552958,0.01,54393.0,54392.0,0.00363]
[1725636553210,0.56504536,54397.0,54369.0,0.5854]
[1725636553211,0.83949639,54381.0,54369.0,0.5854]
[1725636553432,0.05,54402.0,54357.0,0.55430836]
[1725636553433,0.87214536,54414.0,54392.0,0.3963]
[1725636553894,0.001,54397.0,54392.0,0.3983]
[1725636554132,0.001,54397.0,54368.0,0.377861]
[1725636554133,0.46404536,54407.0,54387.0,0.367734]
[1725636554365,0.4081,54414.0,54386.0,0.4136]
[1725636554366,0.002,54393.0,54388.0,0.15345424]
[1725636554603,0.002,54393.0,54392.0,0.18385]
[1725636554820,0.002,54393.0,54392.0,0.948951]
[1725636555082,0.002,54393.0,54392.0,1.521952]
[1725636555309,0.55430836,54418.0,54392.0,0.6027]
[1725636555589,0.55430836,54418.0,54399.0,0.367652]
[1725636555840,0.4395,54432.0,54406.0,0.4039]
[1725636556088,0.55430836,54425.0,54407.0,0.18747161]
[1725636556350,0.4395,54432.0,54406.0,0.4029]
[1725636556589,0.4395,54432.0,54400.0,0.2265652]
[1725636556590,0.4086,54420.0,54400.0,0.2265652]
[1725636556803,0.001,54418.0,54401.0,0.55430836]
[1725636557021,0.001,54418.0,54400.0,0.1898]
[1725636557243,0.0625,54417.0,54403.0,0.00022127]
[1725636557463,0.46404536,54409.0,54403.0,0.00022127]
[1725636557765,0.4079,54408.0,54403.0,0.00022127]
[1725636558018,0.1,54407.0,54403.0,0.00022127]
[1725636558236,0.012,54404.0,54403.0,0.00022127]
[1725636558472,0.4099,54404.0,54403.0,0.00022127]
[1725636558732,0.69171,54404.0,54403.0,0.00022127]
[1725636559444,0.28381,54404.0,54403.0,0.00022127]
[1725636559691,0.18381,54404.0,54403.0,0.00022127]
[1725636560141,0.18381,54404.0,54403.0,0.00222127]
[1725636560615,0.18381,54404.0,54403.0,0.00022127]
[1725636560856,0.203191,54404.0,54403.0,0.00922127]
[1725636561088,0.30620219,54404.0,54403.0,0.00922127]
[1725636561323,0.70120219,54404.0,54403.0,0.00922127]
[1725636561626,0.76370219,54404.0,54403.0,0.009]
[1725636561880,0.183847,54393.0,54392.0,4e-05]
[1725636562095,1.11412212,54393.0,54392.0,4e-05]
[1725636562315,1.27193887,54393.0,54392.0,4e-05]
[1725636562538,1.11412212,54393.0,54392.0,4e-05]
[1725636562759,1.52612212,54393.0,54392.0,4e-05]
[1725636562978,1.52612212,54393.0,54384.0,0.001632]
[1725636562979,0.183874,54385.0,54384.0,0.001632]
[1725636563196,0.74791936,54385.0,54384.0,0.001632]
[1725636563653,0.283874,54385.0,54384.0,0.001632]
[1725636564814,0.30599384,54385.0,54384.0,0.001632]
[1725636565778,0.80163858,54385.0,54384.0,0.001632]
[1725636566248,0.7710392,54385.0,54384.0,0.001632]
[1725636566508,0.30699384,54385.0,54384.0,0.001632]
[1725636566752,0.30599384,54385.0,54384.0,0.001632]
[1725636567220,0.30699384,54385.0,54384.0,0.001632]
[1725636567657,0.85339496,54385.0,54384.0,0.001632]
[1725636567886,0.85339496,54385.0,54384.0,0.398832]
[1725636568842,0.85239496,54385.0,54384.0,0.398832]
[1725636569073,0.85339496,54385.0,54384.0,0.398832]
[1725636569346,0.001,54385.0,54384.0,1.1736472]
[1725636569589,0.83027512,54395.0,54389.0,0.183858]
[1725636569810,0.83027512,54395.0,54387.0,0.367729]
[1725636569811,0.46404536,54406.0,54391.0,0.183853]
[1725636570057,0.000816,54408.0,54395.0,0.183837]
[1725636570269,0.000816,54408.0,54393.0,0.572]
[1725636570525,0.05534713,54408.0,54393.0,0.56927324]
[1725636570785,0.52654536,54399.0,54386.0,0.1851]
[1725636571000,0.05453113,54398.0,54386.0,0.1851]
[1725636571251,0.05453113,54396.0,54386.0,0.1851]
[1725636571494,0.46404536,54393.0,54386.0,0.1851]
[1725636571734,0.05453113,54388.0,54384.0,0.001632]
[1725636571965,0.05453113,54385.0,54384.0,0.001632]
[1725636572483,0.15453113,54387.0,54384.0,0.001632]
[1725636573414,0.1,54387.0,54384.0,0.001632]
[1725636573418,0.001,54385.0,54384.0,0.001632]
[1725636574784,0.07383862,54385.0,54384.0,0.001632]
[1725636575008,0.15646824,54385.0,54384.0,0.001632]
[1725636575252,0.15646824,54385.0,54375.0,0.3833]
[1725636575253,0.82864312,54379.0,54369.0,0.3763]
[1725636575513,0.05509874,54376.0,54371.0,0.55430836]
[1725636575752,0.82864312,54378.0,54369.0,0.3763]
[1725636575987,0.82864312,54378.0,54370.0,0.1111298]
[1725636577149,0.82964312,54378.0,54369.0,0.3873]
[1725636578024,0.05509874,54376.0,54369.0,0.3873]
[1725636578238,0.05509874,54375.0,54369.0,0.3873]
[1725636578491,0.15509874,54377.0,54369.0,0.3763]
[1725636578999,0.05509874,54376.0,54369.0,0.3763]
[1725636579222,0.05509874,54373.0,54369.0,0.3763]
[1725636579442,0.08264811,54372.0,54369.0,0.3763]
[1725636579662,0.08264811,54372.0,54358.0,0.38134]
[1725636579663,0.46404536,54370.0,54358.0,0.38134]
[1725636579906,0.183962,54359.0,54358.0,0.38134]
[1725636580134,0.82864312,54359.0,54358.0,0.38134]
[1725636580347,0.82864312,54359.0,54358.0,0.439304]
[1725636580572,0.1,54369.0,54358.0,0.439304]
[1725636580573,0.05507344,54370.0,54358.0,0.059604]
[1725636580793,0.001,54373.0,54372.0,0.183918]
[1725636581111,0.001,54373.0,54372.0,1.1369458]
[1725636581328,0.001,54373.0,54372.0,1.1599458]
[1725636581745,0.001,54373.0,54372.0,0.7921098]
[1725636581948,0.02205651,54380.0,54372.0,0.6081918]
[1725636582160,0.02205651,54380.0,54375.0,0.182907]
[1725636582388,0.02205651,54380.0,54373.0,0.023]
[1725636582389,0.05507344,54386.0,54376.0,0.47440988]
[1725636582840,0.183893,54380.0,54376.0,0.47440988]
[1725636583286,0.05507344,54383.0,54376.0,0.47440988]
[1725636583499,0.183899,54378.0,54376.0,0.47440988]
[1725636583740,0.05507344,54384.0,54376.0,0.47440988]
[1725636583741,0.551703,54377.0,54376.0,0.392]
[1725636583948,0.183914,54373.0,54372.0,0.1807]
[1725636584063,0.05507344,54377.0,54372.0,0.1807]
[1725636584277,0.05507344,54378.0,54372.0,0.364617]
[1725636584493,0.08261016,54380.0,54372.0,0.364617]
[1725636584494,0.23896944,54379.0,54372.0,0.1807]
[1725636585154,0.02200186,54380.0,54373.0,0.4410732]
[1725636585382,0.001,54380.0,54378.0,0.183894]
[1725636585609,0.001,54380.0,54375.0,0.36781]
[1725636585829,0.001,54380.0,54374.0,0.023]
[1725636585830,0.183893,54380.0,54374.0,0.023]
[1725636586070,0.33894444,54386.0,54375.0,0.04608672]
[1725636586522,0.82864312,54385.0,54381.0,0.1884]
[1725636586760,0.367742,54386.0,54382.0,0.395]
[1725636587012,0.52921241,54387.0,54382.0,0.395]
[1725636587258,0.02172327,54387.0,54382.0,0.394]
[1725636587508,0.18388,54383.0,54382.0,0.384]
[1725636587741,0.367755,54384.0,54373.0,0.1901]
[1725636587992,0.183904,54377.0,54373.0,0.1901]
[1725636588237,0.367775,54382.0,54373.0,0.1901]
[1725636588475,0.05507344,54384.0,54374.0,0.023]
[1725636588716,0.001,54385.0,54381.0,0.013]
[1725636588972,0.551652,54382.0,54381.0,0.013]
[1725636589215,0.90947025,54382.0,54381.0,0.013]
[1725636589458,0.90947025,54382.0,54372.0,0.001632]
[1725636589459,0.66256258,54382.0,54372.0,0.001632]
[1725636589698,0.919572,54373.0,54372.0,0.001632]
[1725636589938,1.48209805,54373.0,54372.0,0.001632]
[1725636590174,1.52706114,54373.0,54372.0,0.001632]
[1725636590891,1.54851853,54373.0,54372.0,0.001632]
[1725636592112,1.54951853,54373.0,54372.0,0.012632]
[1725636592338,1.18168953,54373.0,54372.0,0.012632]
[1725636592572,1.23574664,54373.0,54372.0,0.001632]
[1725636592839,1.54851853,54373.0,54372.0,0.001632]
[1725636593052,1.60457564,54373.0,54372.0,0.011632]
[1725636593282,1.18168953,54373.0,54372.0,0.011632]
[1725636593531,0.62894653,54373.0,54372.0,0.001632]
[1725636593762,1.18168953,54373.0,54372.0,0.011632]
[1725636594225,0.62994653,54373.0,54372.0,0.011632]
[1725636594456,0.81386053,54373.0,54372.0,0.011632]
[1725636594705,1.91734753,54373.0,54372.0,0.011632]
[1725636594935,1.99992085,54373.0,54372.0,0.011632]
[1725636595157,1.99892085,54373.0,54372.0,0.001632]
[1725636595374,1.99892085,54373.0,54372.0,0.012632]
[1725636595593,1.99992085,54373.0,54372.0,0.012632]